Cogmind - Beta 17 @@@ ROGUE MODE // 2026.08.05 @ 21:12:29 Player: 4R-ZE3 Result: Self-destructed Performance ------------- Evolutions (0) 0 Regions Visited (3) 600 Robots Destroyed (17) 85 Value Destroyed (343) 343 Prototype IDs (0) 0 Alien Tech Used (0) 0 Bonus (300) 300 TOTAL SCORE: 1328 Bonus ------- Registered with UFD 300 Cogmind --------- Core Integrity 56/250 Matter 222/300 Energy 160/160 System Corruption 0% Temperature Cool (0) Movement Treading (240) Ox1 Location -9/Scraptown Parts ------- > --- POWER (1) -------- Light Nuclear Core > --- PROPULSION (2) --- Light Treads Light Treads > --- UTILITY (2) ------ High-capacity Storage Unit Structural Scanner > --- WEAPON (2) ------- Assault Rifle Assault Rifle > --- INVENTORY (20) --- Ion Engine Ion Engine Subdweller Monowheel Subdweller Monowheel Subdweller Monowheel Small Storage Unit Subdweller Optics Light Armor Plating Medium Laser Particle Cannon Particle Cannon Assault Rifle Assault Rifle Assault Rifle Assault Rifle Light Assault Rifle Subdweller Machine Gun Grenade Launcher Mining Claw Peak State ------------ > --- POWER ------------ Light Nuclear Core > --- PROPULSION ------- Light Treads Light Treads > --- UTILITY ---------- High-capacity Storage Unit Structural Scanner > --- WEAPON ----------- Assault Rifle Assault Rifle > --- INVENTORY -------- Ion Engine Ion Engine Subdweller Monowheel Small Storage Unit Subdweller Optics Light Armor Plating Medium Laser Particle Cannon Particle Cannon Assault Rifle Assault Rifle Assault Rifle Assault Rifle Light Assault Rifle Grenade Launcher Mining Claw [Rating: 11] Favorites ----------- Power Light Nuclear Core Engine Ion Engine Power Core Light Nuclear Core Propulsion Light Treads Treads Light Treads Utility Structural Scanner Device Structural Scanner Storage High-capacity Storage Unit Weapon Assault Rifle Ballistic Gun Assault Rifle Slashing Weapon Mining Claw Build | -11 -10 -10 -9 ------- Run | Yrd Mat Sub Scr Slots Evolved . | . . . . Power . | . . . . Propulsion . | . . . . Utility . | . . . . Weapon . | . . . . Parts Attached 13 | 6 7 . . Power 2 | 1 1 . . Engine 1 | 1 . . . Core 1 | . 1 . . Reactor . | . . . . Propulsion 2 | 2 . . . Treads 2 | 2 . . . Leg . | . . . . Wheel . | . . . . Hover . | . . . . Flight . | . . . . Utility 3 | 1 2 . . Device 1 | . 1 . . Storage 2 | 1 1 . . Processor . | . . . . Hackware . | . . . . Protection . | . . . . Artifact . | . . . . Weapon 6 | 2 4 . . Energy Gun . | . . . . Energy Cannon . | . . . . Ballistic Gun 5 | 2 3 . . Ballistic Cannon . | . . . . Launcher . | . . . . Special Weapon . | . . . . Impact Weapon . | . . . . Slashing Weapon 1 | . 1 . . Piercing Weapon . | . . . . Special Melee Weapon . | . . . . Unidentified Prototypes . | . . . . Parts Lost . | . . . . Power . | . . . . Propulsion . | . . . . Utility . | . . . . Weapon . | . . . . Highest Loss Streak . | . . . . To Critical Strikes . | . . . . Average Backups 13 | 1 10 16 19 Power 1 | . 1 2 2 Propulsion 1 | . . 1 3 Utility 1 | . 1 2 3 Weapon 8 | . 7 10 11 Tool/Special . | . . . . Unused Backups 14 | . . . 14 Power 1 | . . . 1 Propulsion 3 | . . . 3 Utility 2 | . . . 2 Weapon 8 | . . . 8 Tool/Special . | . . . . Average Slot Usage (%) 99 | . 99 100 100 Engine 3 | . 6 . . Core 10 | . 8 14 14 Treads 28 | . 28 28 28 Device 13 | . 13 14 14 Storage 14 | . 14 14 14 Ballistic Gun 27 | . 27 28 28 Peak Build Rating 11 | 6 10 11 11 Average Rating 9 | 4 8 10 11 On Entrance 6 | . 6 10 11 Avg Prop Armor Cover (%) . | . . . . Naked Turns . | . . . . Heaviest Build 50 | 12 50 50 50 Greatest Support 40 | 40 40 40 40 Greatest Overweight (x) 1 | . 1 1 1 Average Overweight (x) . | . . 1 1 Largest Inventory Capacity 20 | 8 20 20 20 Average Capacity 18 | 6 17 20 20 Most Carried 19 | 2 14 19 19 Average Carried 13 | 1 10 16 19 Final Capacity 20 | 8 20 20 20 Final Carried 19 | 2 14 19 19 Class Distribution -------------------- 100% | Mutant Dominant Class ---------------- Mutant | -10/Materials Mutant | -10/Subcaves Mutant | -9/Scraptown Resources | -11 -10 -10 -9 ----------- Run | Yrd Mat Sub Scr Matter Collected 520 | 88 292 140 . Remotely . | . . . . Salvage Created 540 | . 400 140 . Parts 44 | . 33 11 . Haulers Intercepted 2 | . 2 . . Recyclers Shooed . | . . . . Parts Field Recycled . | . . . . Retrieved Matter . | . . . . Parts Self-Destructed 3 | . . 3 . Prevented . | . . . . Parts Restored . | . . . . Kills | -11 -10 -10 -9 ------- Run | Yrd Mat Sub Scr Combat Hostiles Destroyed 13 | . 10 3 . Guns 13 | . 10 3 . Classes Destroyed 5 | . 4 1 . Builder 2 | . 2 . . Hauler 2 | . 2 . . Swarmer 6 | . 6 . . Grunt 4 | . 4 . . Subdweller 3 | . . 3 . Best Kill Streak 5 | . 5 2 . Combat Bots Only 3 | . 3 2 . Max Kills in Single Turn 1 | . 1 1 . Gunslinging . | . . . . Exploded . | . . . . Melee . | . . . . Uniques/NPCs Destroyed . | . . . . Combat | -11 -10 -10 -9 -------- Run | Yrd Mat Sub Scr Hostile Shots Fired 77 | . 67 10 . Missed 23 | . 20 3 . Hits 54 | . 47 7 . Projectile 54 | . 47 7 . Damage Taken 654 | . 510 144 . Core 194 | . 152 42 . Absorbed by Shields . | . . . . Core Remaining (%) 100 | 100 . . . Volleys Fired 43 | . 35 8 . Largest 2 | . 2 2 . Hottest 40 | . 40 40 . Shots Fired 86 | . 70 16 . Gun 86 | . 70 16 . Cannon . | . . . . Launcher . | . . . . Special . | . . . . Kinetic 86 | . 70 16 . Thermal . | . . . . Explosive . | . . . . Electromagnetic . | . . . . Robot Hit Streak 8 | . 6 8 . Robot Miss Streak 6 | . 6 1 . Penetration Max . | . . . . Secondary Targets 1 | . 1 . . Max Gunslinging Chain 1 | . 1 . . Shots Hit Robots 51 | . 39 12 . Core Hits 26 | . 20 6 . Critical Kills . | . . . . Critical Parts Destroyed . | . . . . Critical Strikes . | . . . . Melee Attacks 5 | . 5 . . Impact . | . . . . Slashing 5 | . 5 . . Piercing . | . . . . Sneak Attacks . | . . . . Combat Hostiles . | . . . . Follow-up Attacks . | . . . . Damage Inflicted 705 | . 543 162 . Guns 705 | . 543 162 . Cannons . | . . . . Explosions . | . . . . Melee . | . . . . Ramming . | . . . . Kinetic 705 | . 543 162 . Thermal . | . . . . Explosive . | . . . . Electromagnetic . | . . . . Impact . | . . . . Slashing . | . . . . Piercing . | . . . . Highest Corruption . | . . . . Average Corruption . | . . . . Corruption Purged . | . . . . Corruption Blocked . | . . . . Overload Shots . | . . . . Overflow Damage . | . . . . Projectiles . | . . . . Explosions . | . . . . Melee . | . . . . Knockbacks . | . . . . Impact . | . . . . Kinetic . | . . . . Secondary . | . . . . Self-Inflicted Damage . | . . . . Shots . | . . . . Rammed . | . . . . Targets Rammed . | . . . . Kicked . | . . . . Crushed . | . . . . Highest Temperature 8 | . 8 . . Average Temperature 2 | . 2 . . Received Heat Transfer 207 | . 177 30 . Siege Activations . | . . . . Martial Activations . | . . . . Shielding Activations . | . . . . Robots Disrupted . | . . . . Combat Hostiles . | . . . . Robots Corrupted . | . . . . Combat Hostiles . | . . . . Parts Fried . | . . . . Impact Corruptions . | . . . . Robots Melted . | . . . . Combat Hostiles . | . . . . Parts Melted . | . . . . Heat Transferred . | . . . . Parts Sabotaged . | . . . . Parts Stolen . | . . . . Parts Stripped . | . . . . Power Chain Reactions . | . . . . Alert | -11 -10 -10 -9 ------- Run | Yrd Mat Sub Scr Maximum Alert Level . | . . . . Low Security (%) 100 | 100 100 . . Level 1 . | . . . . Level 2 . | . . . . Level 3 . | . . . . Level 4 . | . . . . Level 5 . | . . . . High Security . | . . . . Max Security . | . . . . Peak Influence 76 | . 76 . . Initial . | . . . . Average 16 | . 17 . . Influence Increases 287 | . 287 . . Destroy 0b10 Robot/C 200 | . 200 . . Destroy 0b10 Robot/NC 20 | . 20 . . Destroy Leader 44 | . 44 . . Successful Hack 6 | . 6 . . Destroy Structure 2 | . 2 . . Lose Combat Pursuer 15 | . 15 . . Influence Decreases 287 | . 287 . . Time Decay 287 | . 287 . . Squads Dispatched 1 | . 1 . . Investigation 1 | . 1 . . Extermination . | . . . . Reinforcement . | . . . . Assault . | . . . . Garrison . | . . . . Intercept . | . . . . Searches Triggered . | . . . . Construction Impeded . | . . . . Haulers Reinforced . | . . . . Active Scanning Responses . | . . . . Cargo Convoy Interrupts . | . . . . Stealth | -11 -10 -10 -9 --------- Run | Yrd Mat Sub Scr Distress Signals 2 | . 2 . . Communications Jammed . | . . . . Distress Signals . | . . . . Times Spotted 23 | . 20 3 . Peak Tracking Total 4 | . 4 2 . Tactical Retreats 1 | . 1 . . Traps | -11 -10 -10 -9 ------- Run | Yrd Mat Sub Scr Traps Triggered 1 | . 1 . . Indirectly . | . . . . Trap Hack Attempts . | . . . . Triggered . | . . . . Disarmed . | . . . . Reprogrammed . | . . . . Reused . | . . . . Traps Extracted . | . . . . Installed . | . . . . Triggered . | . . . . Machines | -11 -10 -10 -9 ---------- Run | Yrd Mat Sub Scr Machines Disabled . | . . . . Max in Single Turn . | . . . . Machines Repaired . | . . . . Machines Dismantled . | . . . . Machines Sabotaged . | . . . . Overloaded Fab Kills . | . . . . Hacking | -11 -10 -10 -9 --------- Run | Yrd Mat Sub Scr Machines Accessed 4 | . 4 . . Terminals 2 | . 2 . . Fabricators . | . . . . Repair Stations . | . . . . Recycling Units 2 | . 2 . . Scanalyzers . | . . . . Garrison Access . | . . . . Total Hacks 9 | . 9 . . Successful 1 | . 1 . . Failed 8 | . 8 . . Catastrophic 1 | . 1 . . Database Lockouts . | . . . . Manual 5 | . 5 . . Terminals 5 | . 5 . . Fabricators . | . . . . Repair Stations . | . . . . Recycling Units 4 | . 4 . . Scanalyzers . | . . . . Garrison Access . | . . . . Terminal Hacks 1 | . 1 . . Robot Analysis 1 | . 1 . . Fabricator Hacks . | . . . . Repair Station Hacks . | . . . . Recycling Unit Hacks . | . . . . Scanalyzer . | . . . . Garrison Access Hacks . | . . . . Unauthorized Hacks . | . . . . Terminals . | . . . . Fabricators . | . . . . Repair Stations . | . . . . Recycling Units . | . . . . Scanalyzers . | . . . . Garrison Access . | . . . . Data Cores Recovered . | . . . . Used . | . . . . Hacking Detections 4 | . 4 . . Full Trace Events 2 | . 2 . . Feedback Events . | . . . . Feedback Blocked . | . . . . Robot Schematics Acquired . | . . . . Robots Built . | . . . . Authchips . | . . . . Time . | . . . . Total Robot Build Rating . | . . . . Part Schematics Acquired . | . . . . Parts Built . | . . . . Authchips . | . . . . Time . | . . . . Total Part Build Rating . | . . . . Part Studies Acquired . | . . . . Parts Repaired . | . . . . Time . | . . . . Parts Recycled . | . . . . Recycled Matter . | . . . . Retrieved Matter . | . . . . Retrieved Components . | . . . . Parts Scanalyzed . | . . . . Part Schematics Acquired . | . . . . Parts Damaged . | . . . . Bothacking | -11 -10 -10 -9 ------------ Run | Yrd Mat Sub Scr Used RIF Installer . | . . . . Robots Hacked . | . . . . Non-combat . | . . . . Combat . | . . . . Robot Hacks Applied . | . . . . Relay Couplers Released . | . . . . Fabnet Peak Effective % . | . . . . Robots Rewired . | . . . . Allies Hacked . | . . . . Hacks Repelled . | . . . . Allies | -11 -10 -10 -9 -------- Run | Yrd Mat Sub Scr Total Allies . | . . . . Largest Group . | . . . . Highest-Rated Group . | . . . . Highest-Rated Ally . | . . . . Total Orders . | . . . . Ally Attacks . | . . . . Total Damage . | . . . . Kills . | . . . . Allies Corrupted . | . . . . Allies Melted . | . . . . Intel | -11 -10 -10 -9 ------- Run | Yrd Mat Sub Scr Active Infowar (turns) 2579 | . 1310 628 641 Structural 2579 | . 1310 628 641 Robot Analysis Total 1 | . 1 . . Derelict Logs Recovered 4 | . . 1 3 Drone Launches . | . . . . Drone Recoveries . | . . . . Exploration | -11 -10 -10 -9 ------------- Run | Yrd Mat Sub Scr Turns Passed 2718 | 65 1384 628 641 Spaces Moved 1102 | 36 551 248 267 Core 2 | 2 . . . Treads 1100 | 34 551 248 267 Legs . | . . . . Wheels . | . . . . Hover . | . . . . Flight . | . . . . Fastest Speed 50 | 50 160 240 240 Average Speed 225 | 153 217 240 240 Slowest Speed 240 | 160 240 240 240 Overloaded Moves . | . . . . Propulsion Burnouts . | . . . . Robots Hopped . | . . . . Potential Cave-ins . | . . . . Cave-ins Triggered . | . . . . Exploration Rate (%) 38 | 3 89 22 41 Regions Visited 3 Branch Regions 2 Pre-discovered Areas 1 | . . . 1 Known Exits Taken . | . . . . Unknown Exits Taken 3 | 1 1 1 . Scrap Searched . | . . . . Spaces Dug 1 | . 1 . . Terrain Destroyed 1 | . 1 . . Melee 1 | . 1 . . Projectile . | . . . . AOE . | . . . . Terrain Rammed . | . . . . Walls Destroyed . | . . . . Machines Disabled . | . . . . Actions | -11 -10 -10 -9 --------- Run | Yrd Mat Sub Scr Total 1230 | 43 654 266 267 Wait 53 | . 47 6 . Move 1099 | 35 550 247 267 Hop . | . . . . Pick Up 15 | 2 8 5 . Fast Attach 7 | 6 1 . . Attach . | . . . . Detach . | . . . . Swap 7 | . 7 . . Drop 1 | . 1 . . Fire 43 | . 35 8 . Melee 5 | . 5 . . Ram . | . . . . Kick . | . . . . Crush . | . . . . Escape Stasis . | . . . . Rewire . | . . . . Trap . | . . . . Miscellaneous . | . . . . Route ------- -11/Scrapyard -10/Materials (discovered 5 exits: [*Mat x3] / [*Min] / [*Sub]) -10/Subcaves -9/Scraptown History --------- Turn | Location | Event 26 | -11/Scrapyard | Discovered new exit (range 15) 66 | -11/Scrapyard | Entered Materials 313 | -10/Materials | Build established: Mutant 322 | -10/Materials | Discovered new exit (range 4) 394 | -10/Materials | Discovered new exit (range 12) 436 | -10/Materials | Discovered new exit (range 6) 628 | -10/Materials | Core integrity fell below 50% 972 | -10/Materials | Discovered new exit (range 11) 1407 | -10/Materials | Discovered new exit (range 15) 1450 | -10/Materials | Entered Subcaves 1451 | -10/Subcaves | Approached by a straggling Scientist 1572 | -10/Subcaves | Learned Materials stockpile data 1578 | -10/Subcaves | Scientist uncovered a shortcut to Scraptown 2078 | -10/Subcaves | Entered Scraptown 2256 | -9/Scraptown | Scanned Subdweller tech in exchange for log data 2261 | -9/Scraptown | Learned location of Armory (-3) 2263 | -9/Scraptown | Learned Factory emergency access door positions 2383 | -9/Scraptown | Visited UFD Registry 2398 | -9/Scraptown | Registered with UFD as "Fissionkit" 2448 | -9/Scraptown | Visited Research Penetration Think Tank 2482 | -9/Scraptown | Visited Botcube Research 2520 | -9/Scraptown | Visited Science Guys 2549 | -9/Scraptown | Visited A0-MCA Data Center 2674 | -9/Scraptown | Visited Curators Association 2712 | -9/Scraptown | Visited Abandonware Association 2719 | -9/Scraptown | Self-destructed Last Messages --------------- at the same time. 02520_ LOCAL NARROWCAST: Science Guys. The heaviest lifting is done with the mind. 02549_ LOCAL NARROWCAST: A0-MCA Data Center. 5E-JZ2(j): This is the DCF demo area. To one side we've placed a regular old slapdash Scrap pile, and on the other an experimental superscrap pile. Can you tell the difference from the outside? 02645_ Z8-HQK(c): "Come one, come all! See for yourself a fine selection of the many wondrous pieces in our collection!" 02674_ LOCAL NARROWCAST: Curators Association. Welcome to the latest exhibit, look but don't touch. 02712_ LOCAL NARROWCAST: Abandonware Association. Hack the planet. 02715_ Z8-HQK(c): "Come one, come all! See for yourself a fine selection of the many wondrous pieces in our collection!" Map ----- +----------------------------------------------------+ | ?????????????????????????????????????????????????? | | ?????????????????????????????????????????????????? | | ?????????????????????????????????????????????????? | | ?????????????????????????????????????????????????? | | ?????????????????????????????????????????????????? | | ?????????????????????????????????????????????????? | | ?????????????????????????????????????????????????? | | ?????????????????????????????????????????????????? | | ?????????????????????????????????????????????????? | | ?????????????????????????????????????????????????? | | ?????????????????????????????????####?####???????? | | ?????????????????????????????????#########???????? | | ?????????????????????????#####??? #"###"# ???????? | | ?????????????????????????#####???## "&" ##???????? | | ?????????????????????????"""##?#" """ "#?????? | | ????????????????## ??????" ##?##"" ""##?????? | | ????????????????## ??? p #####!" "$###""""" | | """"##??????????## ?? #" #####"" ""######## | | ||| ##??????????## "#X#" ####" "## """" | | """"##??????????## "###" #####"" ""###? ! | | || ##??????????## """"" ##?##!" "&##??? | | """"##?????????????? ##?##"" ""##??? | | ||| ##???????????????? ##????? ??????? | | #########?????###### ########### ########### | | ## ###########?????######j########### ########### | | ##?????##""""@""""""""""" """"""""""" | | ##?????##" | | ##?????##" | | ##?????##" r r | | ##?????##" r | | ### ##?????##" | | ### ##?????"" """"""""""""""""""""""" | | ?## ##????""" """"""""""""""""""""""" | | ?## ##????""" ""###### ############# | | ?## ##????""" ""# ######## | | ?## #####"?"" ""# ?? ??????????? | | ? # ###"#"?"" ""# ??"" ""??????????# | | ? # ""#"#"?""p ""????? ?????####### | | ? # """"#"?"" p ""?????? ??????####### | | ? # ""####?##" "" ????????????? | | ? # #########" "" ????????????? | | # #########" ""# ???? ???????###### | | ""# ??? ??????###### | | # ""# ??"" "???????????# | | # ""# ?? ???????????? | | ### ""# ######## | | ### ""###### ############# | | """"""""""""""""""""""" | | """"""""""""""""""""""" | | | +----------------------------------------------------+ Best States ------------- Heat Dissipation 25 Energy Generation 14 Energy Capacity 250 Matter Stores 222 Matter Capacity 300 Sight Range 16 Terrain Scan Density 10 Evasion (%) 40 Recoil Reduction 2 Item Schematics ----------------- None Robot Schematics ------------------ None Fabricated ------------ Nothing Repaired ---------- Nothing Studied --------- None Alien Tech Used ----------------- None Achievements -------------- None Challenges ------------ None Game ------ Seed ActiveSniperBay Manual? 0 Play Time 00:07:53 Cumulative 176.3 hours Start 2026.08.05 @ 21:05:30 End 2026.08.05 @ 21:12:29 Sessions 1 Manual Loads 0 Difficulty Rogue Special Mode None Game No. 187 Rogue 133 Adventurer 54 Explorer 0 Win Type - Total 8 Types 4/0/1/1/0/0/0/1/0/1 Lore% 66 Gallery% 58 Achievement% 55 Wizard Run 0 Options --------- Layout 1 ASCII 0 Keyboard 0 Movement Mouse Keybinds 1 Fullscreen 2 Font 32/Tamsyn Map View 50x35 Zoom Use 0% Tactical HUD 1 Map Filters NONE Filters NONE Steam 1 RUN: a4509e57-d96f-41fc-9cdc-9fa1c93db4a1